bitfinex/quotes_BTCUSD_20240905
["timestamp","ask_amount","ask_price","bid_price","bid_amount"]
[1725514423318,1.48277264,57414.0,57413.0,0.00263]
[1725514423319,1.58625277,57414.0,57413.0,0.00263]
[1725514423533,1.58625192,57414.0,57413.0,0.00263]
[1725514423749,1.61749063,57414.0,57413.0,0.00363]
[1725514423971,1.48677264,57414.0,57413.0,0.00363]
[1725514424615,1.48477264,57414.0,57413.0,0.00263]
[1725514425023,1.49377264,57414.0,57413.0,0.00363]
[1725514426399,1.62429131,57414.0,57413.0,0.00363]
[1725514426819,1.49377264,57414.0,57413.0,0.00363]
[1725514427025,1.62428921,57414.0,57413.0,0.00363]
[1725514428195,1.63428921,57414.0,57413.0,0.00363]
[1725514428399,1.92974849,57414.0,57413.0,0.00363]
[1725514430209,1.92774849,57414.0,57413.0,0.00363]
[1725514432924,1.9231749,57414.0,57413.0,0.00363]
[1725514433330,2.05354709,57414.0,57413.0,0.00363]
[1725514433930,1.61164483,57414.0,57413.0,0.00363]
[1725514434180,1.48127264,57414.0,57413.0,0.00363]
[1725514440536,1.23743064,57414.0,57413.0,0.00363]
[1725514442816,1.24993064,57414.0,57413.0,0.00363]
[1725514443062,1.23743064,57414.0,57413.0,0.00363]
[1725514444659,1.31567367,57414.0,57413.0,0.00363]
[1725514444882,1.23743064,57414.0,57413.0,0.00363]
[1725514445126,1.31567367,57414.0,57413.0,0.00363]
[1725514445360,1.23743064,57414.0,57413.0,0.00363]
[1725514447612,1.31568675,57414.0,57413.0,0.00363]
[1725514448500,1.23743064,57414.0,57413.0,0.00363]
[1725514448697,1.31568675,57414.0,57413.0,0.00363]
[1725514449599,1.23743064,57414.0,57413.0,0.23603]
[1725514449818,1.33507324,57414.0,57413.0,0.23603]
[1725514451200,1.3089316,57414.0,57413.0,0.23603]
[1725514452351,1.33466491,57414.0,57413.0,0.23603]
[1725514453656,1.41292102,57414.0,57413.0,0.23603]
[1725514455352,1.33466491,57414.0,57413.0,0.23603]
[1725514456592,1.33548091,57414.0,57413.0,0.23603]
[1725514458227,1.4398224,57414.0,57413.0,0.23603]
[1725514458910,1.23548091,57414.0,57413.0,0.23603]
[1725514461024,1.33548091,57414.0,57413.0,0.23603]
[1725514461238,1.4401189,57414.0,57413.0,0.23603]
[1725514464586,1.44012693,57414.0,57413.0,0.23603]
[1725514466274,1.33548091,57414.0,57413.0,0.23603]
[1725514467923,1.44014235,57414.0,57413.0,0.23603]
[1725514469069,1.33548091,57414.0,57413.0,0.23603]
[1725514471709,1.22246259,57414.0,57413.0,0.23603]
[1725514471928,0.85482365,57414.0,57413.0,0.23603]
[1725514472140,0.65015431,57414.0,57413.0,0.23603]
[1725514473471,0.74115431,57414.0,57413.0,0.23503]
[1725514473702,0.73615431,57414.0,57413.0,0.23503]
[1725514474180,0.466579,57414.0,57413.0,0.23503]
[1725514474403,0.100816,57414.0,57413.0,0.23503]
[1725514474633,0.000816,57414.0,57413.0,0.23503]
[1725514474843,0.100816,57414.0,57413.0,0.23503]
[1725514475054,0.100816,57414.0,57413.0,0.23703]
[1725514475465,0.23798889,57417.0,57414.0,0.2181]
[1725514475684,0.121921,57414.0,57413.0,0.00463]
[1725514476106,0.121921,57414.0,57413.0,0.22273]
[1725514476529,0.121921,57414.0,57413.0,0.22173]
[1725514476956,0.365763,57414.0,57413.0,0.21973]
[1725514477367,0.02882416,57417.0,57414.0,0.2148]
[1725514477575,0.243834,57416.0,57414.0,0.2148]
[1725514477778,0.121921,57414.0,57413.0,0.00163]
[1725514477985,0.221921,57414.0,57413.0,0.00363]
[1725514478407,0.221921,57414.0,57413.0,0.22963]
[1725514479062,0.221921,57414.0,57413.0,0.23063]
[1725514479743,0.1,57414.0,57413.0,0.23063]
[1725514479972,0.100816,57414.0,57413.0,0.23063]
[1725514480438,0.100816,57414.0,57413.0,0.23263]
[1725514483239,0.222737,57414.0,57413.0,0.23263]
[1725514484885,0.466579,57414.0,57413.0,0.23263]
[1725514500042,0.243838,57416.0,57413.0,0.13343]
[1725514500252,0.221919,57415.0,57414.0,0.0989]
[1725514500458,0.465757,57415.0,57414.0,0.0989]
[1725514500665,0.465757,57415.0,57414.0,0.2322]
[1725514501987,0.000815,57417.0,57416.0,0.13386]
[1725514502216,0.100815,57417.0,57416.0,0.26716]
[1725514502471,0.000815,57417.0,57416.0,0.26716]
[1725514502701,0.100815,57417.0,57416.0,0.26716]
[1725514502924,0.22273,57417.0,57416.0,0.26716]
[1725514503425,0.22273,57417.0,57416.0,0.389077]
[1725514503426,0.000815,57417.0,57416.0,0.389077]
[1725514503680,0.001815,57417.0,57416.0,0.400077]
[1725514503905,0.001815,57417.0,57416.0,0.643911]
[1725514504116,0.001815,57417.0,57416.0,0.400077]
[1725514504538,0.002815,57417.0,57416.0,0.412077]
[1725514505200,0.002815,57417.0,57416.0,0.655911]
[1725514508189,0.002815,57417.0,57416.0,0.899745]
[1725514508391,0.002815,57417.0,57416.0,0.9973876]
[1725514508605,0.002815,57417.0,57416.0,0.7535536]
[1725514508831,0.002815,57417.0,57416.0,0.655911]
[1725514513428,0.002815,57417.0,57416.0,0.899745]
[1725514513680,0.002815,57417.0,57416.0,0.655911]
[1725514515182,0.002815,57417.0,57416.0,0.678911]
[1725514517574,0.002815,57417.0,57416.0,0.446711]
[1725514517813,0.4662026,57417.0,57416.0,0.05796]
[1725514518967,0.36856,57417.0,57416.0,0.05796]
[1725514520881,0.73597013,57417.0,57416.0,0.05796]
[1725514522775,0.97980013,57417.0,57416.0,0.05796]
[1725514525531,1.22363013,57417.0,57416.0,0.023]
[1725514525780,1.33753013,57417.0,57416.0,0.023]
[1725514526210,1.4419807,57417.0,57416.0,0.023]
[1725514526416,0.853447,57414.0,57413.0,0.00163]
[1725514526672,1.0510896,57414.0,57413.0,0.00163]
[1725514527728,1.02833864,57414.0,57413.0,0.00163]
[1725514528991,1.02933864,57414.0,57413.0,0.01063]
[1725514529421,1.03033864,57414.0,57413.0,0.01963]
[1725514531649,1.03837018,57414.0,57413.0,0.01963]
[1725514532708,1.03811208,57414.0,57413.0,0.01963]
[1725514536406,1.28195408,57414.0,57413.0,0.01963]
[1725514536625,1.29375408,57414.0,57413.0,0.01963]
[1725514537103,1.29275408,57414.0,57413.0,0.01063]
[1725514537749,1.29175408,57414.0,57413.0,0.00163]
[1725514537980,1.29475408,57414.0,57413.0,0.00163]
[1725514539253,1.29575408,57414.0,57413.0,0.00163]
[1725514539686,1.29875408,57414.0,57413.0,0.00263]
[1725514539898,1.30075408,57414.0,57413.0,0.00363]
[1725514540080,1.31075408,57414.0,57413.0,0.00363]
[1725514540532,1.31157008,57414.0,57413.0,0.00363]
[1725514542493,1.32157008,57414.0,57413.0,0.00363]
[1725514545051,1.31957008,57414.0,57413.0,0.00363]
[1725514545265,1.22040004,57414.0,57413.0,0.00363]
[1725514545476,1.34232104,57414.0,57413.0,0.00363]
[1725514546148,1.22487844,57414.0,57413.0,0.00363]
[1725514546364,1.0785706,57414.0,57413.0,0.12263]
[1725514546575,1.07866013,57414.0,57413.0,0.12263]
[1725514546791,1.07866013,57414.0,57413.0,0.21693]
[1725514549355,0.98101753,57414.0,57413.0,0.21693]
[1725514549625,1.07866013,57414.0,57413.0,0.21693]
[1725514557421,0.97866013,57414.0,57413.0,0.21693]
[1725514558172,1.07866013,57414.0,57413.0,0.21693]
[1725514561116,0.98101753,57414.0,57413.0,0.21693]
[1725514562210,0.98101753,57414.0,57413.0,0.21593]
[1725514562211,0.72817553,57414.0,57413.0,0.21593]
[1725514562492,0.71817553,57414.0,57413.0,0.21493]
[1725514562702,0.72517553,57414.0,57413.0,0.21493]
[1725514570433,0.72117553,57414.0,57413.0,0.21493]
[1725514570850,0.72517553,57414.0,57413.0,0.21493]
[1725514571543,0.72217553,57414.0,57413.0,0.21493]
[1725514571761,0.72517553,57414.0,57413.0,0.21493]
[1725514572229,0.71817553,57414.0,57413.0,0.21493]
[1725514572708,0.71817553,57414.0,57413.0,0.21693]
[1725514573163,0.71817553,57414.0,57413.0,0.21993]
[1725514573385,0.71817553,57414.0,57413.0,0.21793]
[1725514573846,0.71817553,57414.0,57413.0,0.22293]
[1725514574529,0.71817553,57414.0,57413.0,0.21993]
[1725514574970,0.71817553,57414.0,57413.0,0.22493]
[1725514576419,0.96201753,57414.0,57413.0,0.13063]
[1725514577840,0.96201753,57414.0,57413.0,0.12563]
[1725514578782,0.96201753,57414.0,57413.0,0.12063]
[1725514579028,1.20585953,57414.0,57413.0,0.00163]
[1725514579507,1.20685953,57414.0,57413.0,0.00163]
[1725514579956,1.20585953,57414.0,57413.0,0.00163]
[1725514580196,1.20685953,57414.0,57413.0,0.00163]
[1725514580473,1.31135519,57414.0,57413.0,0.00163]
[1725514580717,1.20685953,57414.0,57413.0,0.00163]
[1725514582139,1.57719795,57414.0,57413.0,0.00163]
[1725514582393,0.853597,57404.0,57403.0,0.10309]
[1725514582843,1.20649646,57404.0,57403.0,0.10309]
[1725514584006,1.20949646,57404.0,57403.0,0.10309]
[1725514585211,1.21149646,57404.0,57403.0,0.10309]
[1725514585444,1.23452722,57404.0,57403.0,0.10309]
[1725514585934,0.99064222,57404.0,57403.0,0.10309]
[1725514586173,0.99064222,57404.0,57403.0,0.20629]
[1725514586400,0.74975722,57404.0,57403.0,0.20629]
[1725514586646,0.74670823,57404.0,57403.0,0.20629]
[1725514586898,0.99059323,57404.0,57403.0,0.20629]
[1725514587116,0.99159323,57404.0,57403.0,0.20629]
[1725514587338,0.99259323,57404.0,57403.0,0.20629]
[1725514587799,0.99159323,57404.0,57403.0,0.20629]
[1725514588259,0.99159323,57404.0,57403.0,0.210922]
[1725514589678,0.98859323,57404.0,57403.0,0.210922]
[1725514590156,0.98859323,57404.0,57403.0,0.213922]
[1725514596638,0.74470823,57404.0,57403.0,0.213922]
[1725514596846,0.84235083,57404.0,57403.0,0.213922]
[1725514600621,0.74470823,57404.0,57403.0,0.213922]
[1725514600865,0.84235083,57404.0,57403.0,0.213922]
[1725514601729,0.84316683,57404.0,57403.0,0.213922]
[1725514613498,1.08705183,57404.0,57403.0,0.213922]
[1725514621491,1.08709469,57404.0,57403.0,0.213922]
[1725514627870,0.50168209,57404.0,57403.0,0.213922]
[1725514628242,0.59932469,57404.0,57403.0,0.213922]
[1725514628809,0.84320969,57404.0,57403.0,0.213922]
[1725514629009,0.59932469,57404.0,57403.0,0.213922]
[1725514629754,0.50168209,57404.0,57403.0,0.213922]
[1725514630392,0.74556709,57404.0,57403.0,0.213922]
[1725514630878,0.50168209,57404.0,57403.0,0.213922]
[1725514631367,0.47565133,57404.0,57403.0,0.213922]
[1725514631576,0.23176633,57404.0,57403.0,0.213922]
[1725514632252,0.47565133,57404.0,57403.0,0.213922]
[1725514633548,0.10982433,57404.0,57403.0,0.213922]
[1725514633767,0.00982433,57404.0,57403.0,0.58323902]
[1725514633985,0.00970058,57404.0,57403.0,0.88508802]
[1725514634407,0.000816,57404.0,57403.0,0.88508802]
[1725514634853,0.000816,57404.0,57403.0,0.63819902]
[1725514635066,0.001816,57404.0,57403.0,0.64819902]
[1725514635710,0.001816,57404.0,57403.0,0.64519902]
[1725514636129,0.002816,57404.0,57403.0,0.65519902]
[1725514638021,0.002816,57404.0,57403.0,0.89908802]
[1725514638682,0.002816,57404.0,57403.0,0.65519902]
[1725514640443,0.00293603,57404.0,57403.0,0.65519902]
[1725514640888,0.00293603,57404.0,57403.0,1.05519902]
[1725514641329,0.002816,57404.0,57403.0,1.05519902]
[1725514641774,0.002816,57404.0,57403.0,0.651715]
[1725514642870,0.121933,57409.0,57403.0,0.651715]
[1725514642871,0.121932,57409.0,57407.0,0.03496]
[1725514643080,0.121932,57409.0,57408.0,0.26276]
[1725514644234,0.123932,57409.0,57408.0,0.26276]
[1725514644666,0.121932,57409.0,57408.0,0.26276]
[1725514644877,0.222932,57409.0,57408.0,0.27176]
[1725514645982,0.222932,57409.0,57408.0,0.28076]
[1725514645983,0.223932,57409.0,57408.0,0.28076]
[1725514646870,0.467796,57409.0,57408.0,0.28076]
[1725514647098,0.5654386,57409.0,57408.0,0.28076]
[1725514648466,0.57402988,57409.0,57408.0,0.28076]
[1725514648936,0.81789388,57409.0,57408.0,0.143]
[1725514649384,0.81870988,57409.0,57408.0,0.143]
[1725514650988,0.81858279,57409.0,57408.0,0.143]
[1725514653977,0.84591057,57409.0,57408.0,0.143]
[1725514654603,0.84570543,57409.0,57408.0,0.143]
[1725514659413,0.59261064,57409.0,57408.0,0.143]
[1725514659628,0.71454264,57409.0,57408.0,0.143]
[1725514660543,0.61690004,57409.0,57408.0,0.143]
[1725514660756,0.71454264,57409.0,57408.0,0.143]
[1725514661408,0.71454264,57409.0,57408.0,0.144632]
[1725514661645,0.81454264,57409.0,57408.0,0.144632]
[1725514665898,0.81454264,57409.0,57408.0,0.246632]
[1725514669176,0.81454264,57409.0,57408.0,0.019632]
[1725514669400,0.81454264,57409.0,57408.0,0.119832]
[1725514669850,0.72011481,57409.0,57408.0,0.119832]
[1725514670072,0.72870348,57409.0,57408.0,0.119832]
[1725514672492,0.72870348,57409.0,57408.0,0.154792]
[1725514672719,0.48483948,57409.0,57408.0,0.154792]
[1725514672973,0.48483948,57409.0,57408.0,0.279692]
[1725514676209,0.49034894,57409.0,57408.0,0.279692]
[1725514679395,0.99034894,57409.0,57408.0,0.279692]
[1725514680317,0.98558653,57409.0,57408.0,0.279692]
[1725514680758,0.7594115,57409.0,57408.0,0.279692]
[1725514680983,1.0032755,57409.0,57408.0,0.279692]
[1725514687028,1.0032755,57409.0,57408.0,0.179492]
[1725514687282,1.2471395,57409.0,57408.0,0.179492]
[1725514687497,1.3423395,57409.0,57408.0,0.019632]
[1725514687723,1.5862035,57409.0,57408.0,0.019632]
[1725514688186,1.69096263,57409.0,57408.0,0.019632]
[1725514688835,1.69096263,57409.0,57408.0,0.010632]
[1725514689051,1.69096263,57409.0,57408.0,0.004632]
[1725514689517,1.69096263,57409.0,57408.0,0.007632]
[1725514689518,1.5862035,57409.0,57408.0,0.007632]
[1725514690667,1.7170672,57409.0,57408.0,0.007632]
[1725514692514,1.5862035,57409.0,57408.0,0.007632]
[1725514694993,1.8300675,57409.0,57408.0,0.007632]
[1725514695213,1.5862035,57409.0,57408.0,0.007632]
[1725514695659,1.8300675,57409.0,57408.0,0.007632]
[1725514696613,1.69083154,57409.0,57408.0,0.007632]
[1725514697047,1.93469554,57409.0,57408.0,0.007632]
[1725514697941,1.69083154,57409.0,57408.0,0.007632]
[1725514698589,1.93469554,57409.0,57408.0,0.007632]
[1725514699012,1.59563154,57409.0,57408.0,0.007632]
[1725514700861,1.83949554,57409.0,57408.0,0.007632]
[1725514701290,1.59563154,57409.0,57408.0,0.007632]
[1725514701515,1.83949554,57409.0,57408.0,0.007632]
[1725514703453,1.7351154,57409.0,57408.0,0.007632]
[1725514704171,1.46254422,57409.0,57408.0,0.007632]
[1725514704417,1.48987588,57409.0,57408.0,0.007632]
[1725514704855,1.74216844,57409.0,57408.0,0.007632]
[1725514705279,1.49830444,57409.0,57408.0,0.007632]
[1725514705488,1.74216844,57409.0,57408.0,0.007632]
[1725514706377,1.49830444,57409.0,57408.0,0.007632]
[1725514707038,1.74216844,57409.0,57408.0,0.007632]
[1725514709956,1.74298444,57409.0,57408.0,0.007632]
[1725514714995,1.74282133,57409.0,57408.0,0.007632]
[1725514715265,1.49895733,57409.0,57408.0,0.007632]
[1725514715711,1.57741789,57409.0,57408.0,0.007632]
[1725514716158,1.82128189,57409.0,57408.0,0.007632]
[1725514716386,1.74282133,57409.0,57408.0,0.007632]
[1725514718793,1.49895733,57409.0,57408.0,0.007632]
[1725514719245,1.59659993,57409.0,57408.0,0.134832]
[1725514719476,1.59659993,57409.0,57408.0,0.236732]
[1725514720865,1.59646184,57409.0,57408.0,0.236732]
[1725514721302,1.67492646,57409.0,57408.0,0.236732]
[1725514721731,1.67492646,57409.0,57408.0,0.134832]
[1725514722618,1.59646184,57409.0,57408.0,0.134832]
[1725514722929,1.67494152,57409.0,57408.0,0.134832]
[1725514723284,1.59646184,57409.0,57408.0,0.134832]
[1725514727375,1.70107592,57409.0,57408.0,0.134832]
[1725514728057,1.94493992,57409.0,57408.0,0.134832]
[1725514728296,1.70107592,57409.0,57408.0,0.134832]
[1725514728520,1.59646184,57409.0,57408.0,0.134832]
[1725514729671,1.97109344,57409.0,57408.0,0.134832]
[1725514729889,1.59646184,57409.0,57408.0,0.007632]
[1725514730108,1.84032584,57409.0,57408.0,0.007632]
[1725514732498,1.71535158,57409.0,57408.0,0.007632]
[1725514732733,1.81299418,57409.0,57408.0,0.007632]
[1725514737577,1.55903594,57409.0,57408.0,0.007632]
[1725514739530,1.71734992,57409.0,57408.0,0.007632]
[1725514740375,1.71734992,57409.0,57408.0,0.101732]
[1725514740821,1.71734885,57409.0,57408.0,0.101732]
[1725514743057,1.71734885,57409.0,57408.0,0.221832]
[1725514744627,1.34250328,57409.0,57408.0,0.221832]
[1725514745273,1.44727755,57409.0,57408.0,0.221832]
[1725514745487,1.34250328,57409.0,57408.0,0.221832]
[1725514746631,1.44727855,57409.0,57408.0,0.221832]
[1725514747708,1.34250328,57409.0,57408.0,0.221832]
[1725514748354,1.58636728,57409.0,57408.0,0.221832]
[1725514750335,1.58636728,57409.0,57408.0,0.127732]
[1725514754556,1.58636728,57409.0,57408.0,0.007632]
[1725514756092,1.68806728,57409.0,57408.0,0.007632]
[1725514756993,1.58636728,57409.0,57408.0,0.007632]
[1725514757424,1.58836728,57409.0,57408.0,0.007632]
[1725514758785,1.83223128,57409.0,57408.0,0.007632]
[1725514761165,1.83023128,57409.0,57408.0,0.007632]
[1725514763264,1.84223128,57409.0,57408.0,0.007632]
[1725514763519,1.341367,57404.0,57403.0,0.001632]
[1725514763754,1.6369096,57404.0,57403.0,0.001632]
[1725514763990,1.65388558,57404.0,57403.0,0.001632]
[1725514764230,1.82296241,57404.0,57403.0,0.001632]
[1725514764453,1.4510536,57402.0,57401.0,0.001632]
[1725514764691,1.5510536,57402.0,57401.0,0.001632]
[1725514764932,1.70812596,57402.0,57401.0,0.001632]
[1725514765161,1.73546173,57402.0,57401.0,0.001632]
[1725514765393,1.57838937,57402.0,57401.0,0.001632]
[1725514765664,1.57638937,57402.0,57401.0,0.001632]
[1725514765913,1.57838937,57402.0,57401.0,0.001632]
[1725514766422,1.58038937,57402.0,57401.0,0.001632]
[1725514767358,1.58055946,57402.0,57401.0,0.001632]
[1725514767832,1.58255946,57402.0,57401.0,0.001632]
[1725514768283,1.68245946,57402.0,57401.0,0.001632]
[1725514768560,1.69926535,57402.0,57401.0,0.001632]
[1725514769517,1.69926535,57402.0,57391.0,0.12373]
[1725514769518,1.097694,57393.0,57391.0,0.12373]
[1725514769755,1.2953366,57393.0,57391.0,0.12373]
[1725514770277,1.57677657,57393.0,57391.0,0.12373]
[1725514771164,1.66967657,57393.0,57391.0,0.00163]
[1725514771385,1.353648,57392.0,57391.0,0.00163]
[1725514771599,1.453648,57392.0,57391.0,0.00163]
[1725514772052,1.58450778,57392.0,57391.0,0.00163]
[1725514772273,1.45375068,57392.0,57391.0,0.00163]
[1725514772712,1.45675068,57392.0,57391.0,0.00163]
[1725514772927,1.45975068,57392.0,57391.0,0.00163]
[1725514774343,1.373741,57388.0,57387.0,0.1203]
[1725514774562,1.373741,57388.0,57383.0,0.0935]
[1725514774563,0.365955,57384.0,57383.0,0.2134]
[1725514774780,0.5635976,57384.0,57383.0,0.2134]
[1725514774998,1.29561028,57384.0,57383.0,0.2134]
[1725514775213,1.03153055,57384.0,57383.0,0.2134]
[1725514775427,1.05887367,57384.0,57383.0,0.2134]
[1725514775893,1.30284367,57384.0,57383.0,0.2134]
[1725514776335,1.30384367,57384.0,57383.0,0.2134]
[1725514777015,1.30384367,57384.0,57383.0,0.1199]
[1725514777315,1.30584367,57384.0,57383.0,0.1199]
[1725514777786,0.85394,57381.0,57380.0,0.1218]
[1725514778016,0.85394,57381.0,57359.0,0.03497]
[1725514778017,0.366006,57376.0,57375.0,0.0985]
[1725514778245,1.2956606,57376.0,57375.0,0.0985]
[1725514778480,0.610062,57371.0,57368.0,0.12343]
[1725514778704,1.2957546,57371.0,57368.0,0.12343]
[1725514779883,1.2997546,57371.0,57368.0,0.12343]
[1725514781312,1.2957546,57371.0,57368.0,0.12343]
[1725514781551,1.3027546,57371.0,57368.0,0.12343]
[1725514781775,1.3067546,57371.0,57368.0,0.12343]
[1725514782004,0.866101,57370.0,57368.0,0.00163]
[1725514782239,1.21013,57370.0,57368.0,0.00163]
[1725514782701,1.48151132,57370.0,57368.0,0.00163]
[1725514783146,0.01,57364.0,57363.0,0.1219]
[1725514783370,0.4737246,57364.0,57363.0,0.1219]
[1725514783595,1.0638346,57364.0,57363.0,0.1219]
[1725514783813,0.610212,57357.0,57356.0,0.1274]
[1725514784029,0.8078546,57357.0,57356.0,0.1274]
[1725514784258,1.31250439,57357.0,57356.0,0.1274]
[1725514784474,0.97077679,57357.0,57356.0,0.2293]
[1725514784689,1.06841939,57357.0,57356.0,0.2293]
[1725514785368,1.0957747,57357.0,57356.0,0.2293]
[1725514785858,0.5229621,57357.0,57356.0,0.2293]
[1725514786081,0.1718771,57357.0,57356.0,0.2293]
[1725514786305,0.1688771,57357.0,57356.0,0.2293]
[1725514786520,0.0468351,57357.0,57356.0,0.26427]
[1725514786737,0.0448351,57357.0,57356.0,0.26427]
[1725514786960,0.1668771,57357.0,57356.0,0.26427]
[1725514787184,0.41075096,57357.0,57356.0,0.26427]
[1725514787468,0.51075096,57357.0,57356.0,0.26427]
[1725514787902,0.50975096,57357.0,57356.0,0.26427]
[1725514788115,0.51175096,57357.0,57356.0,0.26527]
[1725514788323,0.50975096,57357.0,57356.0,0.26527]
[1725514788781,0.26566596,57357.0,57356.0,0.26427]
[1725514788993,0.26666596,57357.0,57356.0,0.26527]
[1725514789435,0.26666596,57357.0,57356.0,0.26427]
[1725514789652,0.26566596,57357.0,57356.0,0.26427]
[1725514789863,0.26666596,57357.0,57356.0,0.26627]
[1725514790081,0.26766596,57357.0,57356.0,0.26627]
[1725514790772,0.14562396,57357.0,57356.0,0.26627]
[1725514791001,0.122039,57359.0,57358.0,0.03497]
[1725514791239,0.122039,57359.0,57358.0,0.24757]
[1725514791461,0.122036,57360.0,57359.0,0.2194]
[1725514791680,0.122036,57360.0,57359.0,0.25137]
[1725514792370,0.122036,57360.0,57359.0,0.25037]
[1725514792823,0.122036,57360.0,57359.0,0.24937]
[1725514793079,0.223036,57360.0,57359.0,0.24937]
[1725514794247,0.25038645,57360.0,57359.0,0.24937]
[1725514794483,0.49545845,57360.0,57359.0,0.25337]
[1725514794707,0.26516153,57360.0,57359.0,0.25337]
[1725514795611,0.14312553,57360.0,57359.0,0.25337]
[1725514795850,0.04312553,57360.0,57359.0,0.25337]
[1725514796994,0.04312553,57360.0,57359.0,0.375408]
[1725514797737,0.04312553,57360.0,57359.0,0.88656]
[1725514798216,0.02935045,57360.0,57359.0,0.88656]
[1725514798685,0.02935045,57360.0,57359.0,0.642484]
[1725514799821,0.02935045,57360.0,57359.0,0.88656]
[1725514800054,0.02935045,57360.0,57359.0,0.642484]
[1725514800975,0.02935045,57360.0,57359.0,1.042484]
[1725514802110,0.002,57360.0,57359.0,1.042484]
[1725514802356,0.02934762,57360.0,57359.0,1.042484]
[1725514802813,0.03016362,57360.0,57359.0,1.042484]
[1725514804424,0.002816,57360.0,57359.0,1.042484]
[1725514804878,0.002816,57360.0,57359.0,0.798408]
[1725514805133,0.002816,57360.0,57359.0,0.65337]
[1725514805134,0.124852,57360.0,57359.0,0.65337]
[1725514805377,0.368924,57360.0,57359.0,0.65337]
[1725514805594,0.368924,57360.0,57359.0,0.6204]
[1725514805595,0.62675254,57360.0,57359.0,0.6204]
[1725514805845,0.62675254,57360.0,57359.0,0.2204]
[1725514806057,0.65410177,57360.0,57359.0,0.2204]
[1725514806522,0.75310177,57360.0,57359.0,0.2204]
[1725514806707,0.75310177,57360.0,57359.0,0.2184]
[1725514806976,0.75410177,57360.0,57359.0,0.128]
[1725514807214,0.75410177,57360.0,57359.0,0.126]
[1725514807215,0.99717377,57360.0,57359.0,0.126]
[1725514807453,0.99717377,57360.0,57359.0,0.124]
[1725514807928,0.99817377,57360.0,57359.0,0.128]
[1725514808380,1.02358941,57360.0,57359.0,0.128]
[1725514808643,1.02358941,57360.0,57359.0,0.006]
[1725514809372,1.26666141,57360.0,57359.0,0.004]
[1725514809605,1.26666141,57360.0,57359.0,0.005]
[1725514810048,1.26666141,57360.0,57359.0,0.004]
[1725514810271,0.854297,57357.0,57356.0,0.001632]
[1725514810514,1.19878367,57357.0,57356.0,0.001632]
[1725514810739,1.21251446,57357.0,57356.0,0.001632]
[1725514810966,1.45659946,57357.0,57356.0,0.001632]
[1725514811204,1.33455746,57357.0,57356.0,0.001632]
[1725514811680,1.45659946,57357.0,57356.0,0.001632]
[1725514812155,1.45859946,57357.0,57356.0,0.006632]
[1725514813398,1.21451446,57357.0,57356.0,0.006632]
[1725514815959,1.21451446,57357.0,57356.0,0.129232]
[1725514818017,1.06786689,57357.0,57356.0,0.129232]
[1725514819832,1.06786689,57357.0,57356.0,0.006632]
[1725514821458,1.06686689,57357.0,57356.0,0.002632]
[1725514821703,1.06786689,57357.0,57356.0,0.002632]
[1725514822150,1.21366302,57357.0,57356.0,0.001632]
[1725514822857,1.21566302,57357.0,57356.0,0.001632]
[1725514823349,1.21366302,57357.0,57356.0,0.001632]
[1725514823782,1.45874802,57357.0,57356.0,0.001632]
[1725514824003,1.45974802,57357.0,57356.0,0.001632]
[1725514826951,1.46056402,57357.0,57356.0,0.001632]
[1725514827451,1.47056402,57357.0,57356.0,0.001632]
[1725514829127,1.47037489,57357.0,57356.0,0.001632]
[1725514830310,1.47237489,57357.0,57356.0,0.001632]
[1725514831253,1.47037489,57357.0,57356.0,0.001632]
[1725514831481,1.46640666,57357.0,57356.0,0.001632]
[1725514832847,1.45640666,57357.0,57356.0,0.001632]
[1725514833103,1.45640666,57357.0,57356.0,0.123832]
[1725514835333,1.45640666,57357.0,57356.0,0.001632]
[1725514836005,1.45840666,57357.0,57356.0,0.001632]
[1725514838007,1.45640666,57357.0,57356.0,0.001632]
[1725514840768,1.21232166,57357.0,57356.0,0.222432]
[1725514843070,1.21032166,57357.0,57356.0,0.222432]
[1725514843301,1.21032166,57357.0,57356.0,0.223432]
[1725514843519,1.20932166,57357.0,57356.0,0.223432]
[1725514843750,1.21032166,57357.0,57356.0,0.223432]
[1725514844212,1.20932166,57357.0,57356.0,0.223432]
[1725514844646,1.20932166,57357.0,57356.0,0.225432]
[1725514849960,1.31365913,57357.0,57356.0,0.225432]
[1725514850193,1.20932166,57357.0,57356.0,0.225432]
[1725514850669,1.31376223,57357.0,57356.0,0.225432]
[1725514851137,1.20932166,57357.0,57356.0,0.225432]
[1725514851612,1.33974349,57357.0,57356.0,0.225432]
[1725514852093,1.06252174,57357.0,57356.0,0.225432]
[1725514853639,1.19294357,57357.0,57356.0,0.225432]
[1725514854071,1.19316628,57357.0,57356.0,0.225432]
[1725514854515,1.06252174,57357.0,57356.0,0.225432]
[1725514856688,1.06252174,57357.0,57356.0,0.128232]
[1725514856689,1.30660674,57357.0,57356.0,0.128232]
[1725514856912,1.02322074,57357.0,57356.0,0.128232]
[1725514857576,1.42533096,57357.0,57356.0,0.125232]
[1725514857837,1.42733096,57357.0,57356.0,0.125232]
[1725514858123,1.43033096,57357.0,57356.0,0.125232]
[1725514859191,1.42533096,57357.0,57356.0,0.125232]
[1725514859419,1.43233096,57357.0,57356.0,0.125232]
[1725514859849,1.42533096,57357.0,57356.0,0.125232]
[1725514860065,1.43233096,57357.0,57356.0,0.125232]
[1725514860488,1.43033096,57357.0,57356.0,0.125232]
[1725514860702,1.43032658,57357.0,57356.0,0.125232]
[1725514860925,1.43432658,57357.0,57356.0,0.125232]
[1725514861597,1.19024158,57357.0,57356.0,0.125232]
[1725514863646,1.43432658,57357.0,57356.0,0.125232]
[1725514863878,1.19024158,57357.0,57356.0,0.125232]
[1725514864327,1.19023804,57357.0,57356.0,0.125232]
[1725514864584,1.0595772,57357.0,57356.0,0.125232]
[1725514864872,1.3036622,57357.0,57356.0,0.001632]
[1725514865346,1.00106733,57357.0,57356.0,0.001632]
[1725514865565,0.99906733,57357.0,57356.0,0.001632]
[1725514866260,1.24315233,57357.0,57356.0,0.001632]
[1725514867605,1.34315233,57357.0,57356.0,0.001632]
[1725514868053,1.34515233,57357.0,57356.0,0.001632]
[1725514868281,1.34315233,57357.0,57356.0,0.001632]